bitfinex/quotes_ETHUSD_20240707
["timestamp","ask_amount","ask_price","bid_price","bid_amount"]
[1720361058880,3.0,2971.4,2970.5,3.158955]
[1720361059191,3.0,2971.4,2970.5,5.515455]
[1720361059360,7.60475651,2971.5,2970.6,0.06731745]
[1720361059562,6.91,2971.5,2970.8,2.35624]
[1720361059764,6.91,2971.5,2970.9,2.42347755]
[1720361060095,6.91,2971.5,2971.0,0.24234776]
[1720361060271,6.91,2971.5,2970.9,2.35617]
[1720361060476,6.91,2971.5,2971.0,2.2526]
[1720361060797,6.91,2971.5,2971.1,0.06730681]
[1720361060964,6.91,2971.9,2971.1,0.06730681]
[1720361061379,6.91,2971.9,2971.0,7.60866]
[1720361061619,6.91,2971.9,2971.0,5.2526]
[1720361061786,6.91,2971.9,2971.0,2.2526]
[1720361061986,6.91,2971.9,2971.1,2.35597]
[1720361062195,6.91,2971.9,2971.1,7.71192]
[1720361062404,6.91,2971.9,2971.1,5.35595]
[1720361062596,6.91,2971.9,2971.2,0.06730194]
[1720361062791,6.91,2971.9,2971.2,2.42324194]
[1720361063087,6.91,2971.9,2971.1,3.0]
[1720361063482,6.91,2971.9,2971.0,5.2526]
[1720361064494,6.91,2971.9,2971.0,7.60863]
[1720361064697,6.91,2971.9,2971.0,5.2526]
[1720361065343,7.60475651,2971.9,2971.0,2.2526]
[1720361065623,6.91,2971.9,2971.0,2.2526]
[1720361065777,6.91,2971.9,2971.0,5.2526]
[1720361065978,6.91,2971.9,2971.1,2.42332715]
[1720361066302,6.91,2971.9,2971.1,4.77927715]
[1720361066718,6.91,2971.9,2971.1,2.35595]
[1720361067236,6.91,2971.9,2971.2,2.42323208]
[1720361067379,6.91,2971.9,2971.3,2.83377821]
[1720361068312,6.91,2971.9,2971.4,0.06729985]
[1720361068516,6.91,2971.9,2971.3,2.83377821]
[1720361069738,6.91,2971.9,2971.3,0.47791821]
[1720361069894,6.91,2971.9,2971.2,3.0]
[1720361070100,6.91,2971.9,2971.1,2.35598]
[1720361070301,6.91,2971.9,2971.1,3.0]
[1720361070846,6.91,2971.9,2971.0,2.2526]
[1720361071013,6.91,2971.9,2971.0,5.2526]
[1720361071211,9.91,2971.9,2971.0,5.2526]
[1720361071555,10.60418169,2971.9,2971.0,2.2526]
[1720361072451,0.69418169,2971.8,2970.8,3.0]
[1720361072595,0.69418169,2971.7,2970.8,0.760888]
[1720361072802,3.69418169,2971.6,2970.8,3.0]
[1720361073013,3.69418169,2971.6,2970.6,2.2526]
[1720361073222,0.69418169,2971.5,2970.6,2.2526]
[1720361073843,0.69418169,2971.5,2970.6,4.60902]
[1720361073999,3.69418169,2971.6,2970.7,0.460902]
[1720361074504,0.69418169,2971.5,2970.7,0.460902]
[1720361074712,0.69418169,2971.5,2970.6,2.2526]
[1720361074911,0.69418169,2971.4,2970.6,2.2526]
[1720361076534,0.69418169,2971.3,2970.6,2.2526]
[1720361076903,0.69418169,2971.3,2969.9,0.331994]
[1720361076904,0.69418169,2971.2,2970.1,4.60939]
[1720361077138,0.69418169,2971.0,2970.2,2.35673]
[1720361077726,0.69418169,2971.1,2970.2,2.35673]
[1720361078538,0.69418169,2971.1,2970.1,2.9824244]
[1720361078720,0.69564188,2971.0,2970.2,3.0]
[1720361079301,0.69564188,2971.0,2969.6,2.35719]
[1720361079302,3.0,2970.9,2969.6,2.4005]
[1720361079614,0.69564188,2970.7,2969.7,2.64120554]
[1720361079938,0.66653784,2970.6,2969.7,2.64120554]
[1720361080122,1.04346283,2970.7,2969.7,2.64120554]
[1720361080434,4.04346283,2970.6,2969.7,0.28411554]
[1720361080625,3.0,2970.6,2969.7,0.28411554]
[1720361080824,4.04346283,2970.6,2969.7,0.28411554]
[1720361081023,4.04346283,2970.6,2969.6,2.4005]
[1720361081225,1.04346283,2970.5,2969.6,2.4005]
[1720361081837,4.04313399,2970.6,2969.6,2.4005]
[1720361082240,1.04313399,2970.5,2969.6,2.4005]
[1720361082411,4.04313399,2970.6,2969.6,5.4005]
[1720361082606,4.04313399,2970.6,2969.6,5.95153718]
[1720361082911,4.04313399,2970.6,2969.6,5.4005]
[1720361083419,4.04313399,2970.6,2969.6,3.0]
[1720361083614,4.04313399,2970.6,2969.5,0.1098718]
[1720361083615,3.0,2970.1,2969.5,0.1098718]
[1720361084866,3.0,2970.4,2969.5,0.1098718]
[1720361085212,3.0,2970.4,2969.5,0.66333711]
[1720361085419,4.04159609,2970.7,2969.6,0.06734243]
[1720361085622,3.0,2970.7,2969.6,0.06734243]
[1720361086253,4.04159609,2970.7,2969.5,0.66333711]
[1720361086415,3.0,2970.4,2969.5,0.66333711]
[1720361087410,3.0,2970.1,2969.5,0.1098718]
[1720361090518,3.0,2969.8,2969.5,0.1098718]
[1720361093767,3.0,2970.1,2969.5,0.1098718]
[1720361094077,7.60387782,2970.3,2969.5,0.1098718]
[1720361094078,9.91,2970.3,2969.5,0.1098718]
[1720361095630,6.91,2970.3,2969.6,2.71456512]
[1720361096262,6.91,2970.3,2969.7,2.35713]
[1720361096462,6.91,2970.3,2969.8,0.61733183]
[1720361096669,6.91,2970.3,2969.9,2.35696]
[1720361096847,6.91,2970.3,2970.0,0.06733184]
[1720361097043,6.91,2970.3,2970.1,0.24242918]
[1720361097244,6.91,2970.8,2970.2,2.4005]
[1720361097475,6.91,2970.8,2970.3,0.06732464]
[1720361097672,6.91,2970.8,2970.3,2.42398464]
[1720361097999,6.91,2970.8,2970.4,2.35651]
[1720361098157,6.91,2970.8,2970.5,0.8453693]
[1720361098473,6.91,2971.3,2970.5,3.2018593]
[1720361098633,6.91,2971.3,2970.5,2.42380984]
[1720361099040,6.91,2971.3,2970.6,2.8682]
[1720361099267,6.91,2971.3,2970.7,2.35629]
[1720361099445,6.91,2971.3,2970.7,4.71257]
[1720361099771,6.91,2971.3,2970.8,0.758077]
[1720361100561,6.91,2971.3,2970.9,0.06731024]
[1720361101145,6.91,2971.3,2971.0,4.67425]
[1720361101448,6.91,2971.9,2971.2,2.35595]
[1720361101770,6.91,2971.9,2971.1,2.35601]
[1720361101771,6.91,2971.9,2971.3,2.8943549]
[1720361101935,6.91,2971.9,2971.5,4.71128]
[1720361102137,6.91,2971.9,2971.6,0.06729428]
[1720361102537,6.91,2971.9,2971.6,2.42290428]
[1720361103143,6.91,2971.9,2971.7,2.35555]
[1720361103343,6.91,2971.9,2971.8,0.47784543]
[1720361103542,19.32,2972.4,2971.8,0.47784543]
[1720361103839,19.32,2972.4,2971.8,0.54513489]
[1720361106043,6.91,2972.4,2971.9,4.67358]
[1720361106240,6.91,2972.4,2972.0,0.82470298]
[1720361107380,6.91,2972.4,2972.0,3.06728549]
[1720361107627,6.91,2972.4,2972.1,2.35518]
[1720361107756,6.91,2972.4,2972.2,2.42243256]
[1720361108091,6.91,2972.4,2972.3,2.42235256]
[1720361108390,6.91,2972.4,2972.3,2.35507]
[1720361108693,6.91,2972.4,2972.3,2.826095]
[1720361108899,6.91,2972.4,2972.3,5.826095]
[1720361109412,6.91,2972.4,2972.3,3.471025]
[1720361109563,6.91,2972.4,2972.3,2.826095]
[1720361109872,6.91,2973.2,2972.5,2.35488]
[1720361110196,6.91,2973.2,2972.6,0.467308]
[1720361110970,6.91,2973.2,2972.6,0.417308]
[1720361111606,6.91,2973.2,2972.7,0.06726965]
[1720361111972,6.91,2973.2,2972.7,2.42202965]
[1720361112174,6.91,2973.2,2972.8,0.06726686]
[1720361112491,6.91,2973.2,2972.9,0.24220269]
[1720361112679,6.91,2973.2,2972.9,0.30946864]
[1720361113474,6.91,2973.2,2973.0,2.3182]
[1720361113675,6.91,2973.2,2973.0,4.67272]
[1720361113932,6.91,2973.8,2973.1,5.42170279]
[1720361114096,6.91,2974.1,2973.4,2.35415]
[1720361114403,6.91,2974.1,2973.3,2.35421]
[1720361114608,6.91,2974.1,2973.3,5.35421]
[1720361114804,6.91,2974.1,2973.4,2.35418]
[1720361115006,6.91,2974.1,2973.5,5.28955991]
[1720361115211,6.91,2974.1,2973.6,0.76437399]
[1720361115410,6.91,2974.1,2973.7,0.06724685]
[1720361115582,6.91,2974.5,2973.7,0.06724685]
[1720361116010,6.91,2974.5,2973.5,2.3182]
[1720361116191,3.0,2974.3,2973.5,2.3182]
[1720361116388,6.91,2974.5,2973.5,2.3182]
[1720361116592,3.0,2974.3,2973.5,2.3182]
[1720361117184,6.91,2974.5,2973.5,2.3182]
[1720361117403,6.91,2974.5,2973.6,0.06724954]
[1720361117603,6.91,2974.5,2973.6,3.06724954]
[1720361118028,6.91,2974.5,2973.6,3.0]
[1720361118417,6.91,2974.5,2973.7,0.06724569]
[1720361118621,6.91,2974.5,2973.6,3.0]
[1720361118819,6.91,2974.5,2973.7,0.0672457]
[1720361119022,6.91,2974.5,2973.8,0.55]
[1720361119258,6.91,2974.5,2973.7,0.55]
[1720361120254,9.91,2974.5,2973.6,0.8439507]
[1720361120566,9.91,2974.5,2973.5,2.3182]
[1720361121413,3.0,2974.2,2973.5,2.3182]
[1720361121615,6.91,2974.5,2973.0,2.3539]
[1720361121616,3.0,2973.9,2973.0,2.3539]
[1720361124934,6.91,2974.0,2973.1,0.06726586]
[1720361125569,6.91,2974.0,2973.0,2.58929]
[1720361126278,3.0,2973.8,2973.0,2.3539]
[1720361131983,0.09130439,2973.7,2973.0,2.3539]
[1720361132202,3.0,2973.5,2972.3,2.3539]
[1720361132708,0.09812179,2973.4,2972.3,4.70897]
[1720361132911,0.09812179,2973.4,2972.4,0.706412]
[1720361134256,0.09812179,2973.4,2972.3,2.3539]
[1720361134681,1.16509385,2973.3,2972.3,2.3539]
[1720361134888,0.09812179,2973.4,2972.3,2.3539]
[1720361135071,0.10266749,2973.2,2972.3,2.3539]
[1720361135275,0.10039456,2973.3,2972.3,2.3539]
[1720361135472,0.10494057,2973.1,2972.3,2.824807]
[1720361135758,0.111578,2973.0,2972.3,2.824807]
[1720361136067,6.91,2973.3,2972.3,2.824807]
[1720361136272,0.10353526,2972.9,2972.3,2.824807]
[1720361136505,6.91,2973.3,2972.3,2.824807]
[1720361136678,0.10580859,2972.8,2972.4,0.5179957]
[1720361136975,0.10808208,2972.7,2972.4,0.5179957]
[1720361137183,6.91,2973.3,2972.4,0.5179957]
[1720361137379,1.26181707,2973.2,2972.4,0.58527349]
[1720361137567,0.09671616,2973.2,2972.5,0.57651505]
[1720361137767,0.09671616,2973.2,2972.6,0.06727199]
[1720361138390,0.09671616,2973.2,2972.6,2.42210199]
[1720361138769,0.09671616,2973.2,2972.6,2.35483]
[1720361138973,0.09671616,2973.2,2972.5,2.93142505]
[1720361139290,0.09671616,2973.2,2972.5,5.28628505]
[1720361139596,0.09671616,2973.2,2972.6,0.52862851]
[1720361139973,0.09671616,2973.2,2972.6,2.88339851]
[1720361140667,0.09671616,2973.2,2972.3,2.3539]
[1720361140873,3.0,2973.0,2972.3,2.3539]
[1720361141096,1.16522439,2972.9,2971.9,2.3891]
[1720361141267,0.10710641,2972.9,2971.9,4.74449]
[1720361141769,0.10710641,2972.9,2971.9,7.09983]
[1720361141975,0.10710641,2972.9,2972.0,3.065293]
[1720361142176,9.91,2973.3,2972.0,3.065293]
[1720361142383,1.26547596,2973.2,2972.0,3.065293]
[1720361142582,1.165189,2973.1,2972.0,3.065293]
[1720361142759,0.10483311,2973.0,2972.0,3.065293]
[1720361142966,9.91,2973.3,2972.1,0.7809733]
[1720361143169,9.91,2973.3,2972.0,2.35531]
[1720361143170,1.26547765,2973.2,2972.0,2.35531]
[1720361143472,3.0,2973.0,2972.0,2.35531]
[1720361144009,0.10710641,2972.9,2972.1,2.35523]
[1720361144172,9.91,2973.3,2972.0,2.3553]
[1720361144379,3.1629551,2973.2,2972.0,2.3553]
[1720361144700,1.59805501,2973.1,2972.0,2.3553]
[1720361144869,0.09671572,2973.2,2972.1,2.35523]
[1720361145062,0.10126163,2973.0,2972.1,2.35523]
[1720361145401,0.10472514,2972.9,2972.1,3.065197]
[1720361145700,0.69660632,2973.2,2972.1,3.065197]
[1720361146028,3.06609001,2973.1,2972.1,3.065197]
[1720361146306,0.53463147,2973.0,2972.1,3.065197]
[1720361146468,0.10185669,2973.0,2972.1,3.065197]
[1720361146869,0.69683819,2973.2,2972.1,3.065197]
[1720361147222,1.69741694,2973.1,2972.1,3.065197]
[1720361147425,0.09958364,2973.1,2972.1,3.065197]
[1720361147697,0.09958364,2973.1,2972.2,0.3065197]
[1720361148694,0.43267777,2973.0,2972.2,0.3065197]
[1720361149008,0.10532021,2972.9,2972.1,3.065157]
[1720361149199,0.10532021,2972.9,2972.1,0.709967]
[1720361149426,0.69701903,2972.9,2971.9,4.74445]
[1720361149602,0.10759361,2972.8,2971.9,7.09978]
[1720361149807,0.10759361,2972.8,2971.9,2.3891]
[1720361150105,0.10759361,2972.8,2971.9,4.74442]
[1720361150299,0.10759361,2972.8,2972.0,2.3553]
[1720361150513,0.10759361,2972.8,2972.0,3.065272]
[1720361150913,6.91,2973.0,2972.1,2.35523]
[1720361151317,0.10651052,2972.9,2972.1,2.35523]
[1720361152192,0.10651052,2972.9,2972.1,4.71041]
[1720361152594,0.10651052,2972.9,2972.1,2.3891]
[1720361152802,0.10651052,2972.9,2972.8,4.74378]
[1720361153002,7.60701903,2973.5,2972.8,2.3891]
[1720361153322,1.95295415,2973.4,2972.8,2.3891]
[1720361153525,0.78799782,2973.4,2972.8,2.3891]
[1720361153693,0.09097879,2973.4,2972.9,2.35459]
[1720361153894,0.09097879,2973.4,2972.9,2.83568624]
[1720361154399,0.09097879,2973.4,2972.9,2.9029526]
[1720361154896,0.09097879,2973.4,2972.9,2.83568624]
[1720361155099,0.09097879,2973.4,2972.8,2.3891]
[1720361155325,0.09097879,2973.4,2972.6,2.35479]
[1720361155525,0.09097879,2973.4,2972.2,0.8599072]
[1720361155526,0.78753578,2973.4,2972.2,2.3891]
[1720361155727,0.69655699,2973.2,2972.3,2.89397]
[1720361156134,0.09898684,2973.1,2972.3,2.89397]
[1720361156334,0.69655699,2973.2,2972.3,5.31626905]
[1720361156556,0.10125987,2973.0,2972.5,2.35485]
[1720361156722,0.10125987,2973.0,2972.6,2.35483]
[1720361156927,0.69655699,2973.4,2972.7,0.470968]
[1720361157181,0.10353305,2972.9,2972.6,2.35483]
[1720361157377,0.69655699,2973.4,2972.7,2.3547]
[1720361157965,0.09444124,2973.3,2972.7,2.3547]
[1720361158322,0.79099823,2973.3,2972.5,2.35485]
[1720361158650,0.69655699,2973.1,2972.2,2.3891]
[1720361158958,0.69655699,2972.9,2972.2,2.3891]
[1720361159124,0.69617844,2972.9,2972.2,2.3891]
[1720361159325,0.10580639,2972.8,2972.2,2.3891]
[1720361159732,0.69617844,2972.7,2972.2,2.3891]
[1720361159955,0.80198483,2972.8,2972.2,2.3891]
[1720361160157,0.1040052,2972.6,2972.2,2.3891]
[1720361160361,0.79791022,2972.7,2972.2,2.3891]
[1720361160546,0.10627879,2972.5,2972.2,2.3891]
[1720361160750,0.69617844,2972.7,2972.2,2.3891]
[1720361160952,0.10855252,2972.4,2972.2,2.3891]
[1720361161151,0.69681714,2972.9,2972.2,7.573699]
[1720361161344,0.11082641,2972.3,2972.2,5.218609]
[1720361161540,0.69681714,2973.0,2972.4,2.35499]
[1720361161740,6.91,2973.1,2972.5,2.35486]
[1720361161962,0.09718538,2972.9,2972.5,2.825845]
[1720361162187,0.0949124,2973.0,2972.7,2.35469]
[1720361162382,0.0994585,2972.8,2972.6,4.70961]
[1720361162665,0.10173178,2972.7,2972.6,2.35479]
[1720361162883,6.91,2973.1,2972.7,2.35473]
[1720361163244,6.91,2973.1,2972.7,2.8727925]
[1720361163444,6.91,2973.1,2972.8,2.4039]
[1720361163644,0.69681714,2973.3,2972.8,2.4039]
[1720361163894,0.69681714,2973.3,2972.9,2.42183975]
[1720361164249,6.91,2973.5,2972.9,2.42183975]
[1720361164577,6.91,2973.5,2973.0,2.83704398]
[1720361164978,6.91,2973.5,2973.1,0.06726432]
[1720361165151,6.91,2973.5,2973.4,2.4039]
[1720361165352,13.10681714,2973.8,2973.4,2.4039]
[1720361165353,0.69681714,2973.8,2973.4,2.4039]
[1720361165753,0.69681714,2973.9,2973.4,4.75809]
[1720361165948,0.69681714,2973.9,2973.5,2.35407]
[1720361166168,7.95522571,2974.0,2973.5,2.35407]
[1720361166169,6.41,2974.0,2973.6,2.354]
[1720361166879,7.10681714,2974.0,2973.6,2.354]
[1720361167253,6.41,2974.0,2973.6,2.354]
[1720361168284,7.10690403,2974.0,2973.0,8.24096398]
[1720361168452,0.69690403,2973.9,2973.1,0.8240964]
[1720361168652,7.10690403,2974.0,2973.4,2.35414]
[1720361169378,7.10690403,2974.0,2973.1,0.8240964]
[1720361169582,7.10690403,2974.0,2973.0,2.4039]
[1720361169583,0.69690403,2973.9,2973.0,2.4039]
[1720361169796,0.69690403,2973.4,2972.6,2.4039]
[1720361169949,3.0,2973.2,2972.2,2.878339]
[1720361170148,3.69690403,2973.2,2972.3,0.5233539]
[1720361170484,0.69690403,2972.9,2972.3,0.5233539]
[1720361170688,0.69690403,2972.8,2972.2,2.4039]
[1720361170985,0.69690403,2972.7,2972.2,2.4039]
[1720361171499,3.69690403,2972.6,2971.6,2.35559]
[1720361171653,0.69690403,2972.5,2971.6,2.35559]
[1720361171852,0.69690403,2972.4,2971.6,2.35559]
[1720361172103,0.69690403,2972.4,2971.6,0.711525]
[1720361172249,0.69690403,2972.4,2971.6,3.067135]
[1720361172780,0.69690403,2972.4,2971.6,5.422705]
[1720361172986,0.69690403,2972.4,2971.6,0.711525]
[1720361173293,0.69690403,2972.4,2971.6,3.067125]
[1720361173465,0.69690403,2972.3,2971.6,3.067125]
[1720361173668,0.69690403,2972.3,2971.7,3.3067125]
[1720361173863,0.69690403,2972.4,2971.7,3.3067125]
[1720361174359,0.69690403,2972.4,2971.7,5.6622625]
[1720361174559,0.69690403,2972.5,2971.7,5.6622625]
[1720361174765,0.69690403,2972.5,2971.7,3.3067125]
[1720361174984,0.69690403,2972.4,2971.7,0.3067125]
[1720361175789,0.69690403,2972.4,2971.7,3.3067125]
[1720361176083,0.69690403,2972.4,2971.7,0.3067125]
[1720361176466,0.69690403,2972.4,2971.8,2.69280575]
[1720361176806,0.69750516,2972.6,2971.8,2.69280575]
[1720361176952,0.10799601,2972.3,2972.0,2.3553]
[1720361177268,0.10799601,2972.2,2972.0,2.3553]
[1720361177474,0.69750516,2972.7,2972.0,2.3553]
[1720361177680,6.41,2972.8,2972.2,2.4039]
[1720361178452,6.41,2972.8,2972.3,2.35507]
[1720361178715,6.41,2972.8,2972.3,2.42230085]
[1720361178856,6.41,2972.8,2972.5,2.35486]
[1720361179353,6.41,2972.8,2972.5,4.7097]
[1720361179566,6.41,2972.8,2972.6,0.47097]
[1720361179866,6.41,2972.8,2972.3,2.35501]
[1720361180066,6.41,2972.8,2972.5,2.35486]
[1720361180284,6.41,2972.8,2972.6,2.35483]
[1720361181156,6.41,2972.8,2972.3,2.35504]
[1720361181585,6.41,2972.8,2972.2,2.4039]
[1720361181800,6.41,2972.8,2972.6,2.35483]
[1720361182497,6.41,2972.8,2972.3,0.263943]
[1720361182699,6.41,2972.8,2972.4,2.35498]
[1720361183369,0.69750516,2973.1,2972.4,2.35498]
[1720361184388,6.41,2973.2,2972.4,2.35498]
[1720361184389,7.10750516,2973.2,2972.6,2.35483]
[1720361184583,7.10750516,2973.2,2972.7,0.235483]
[1720361184785,6.41,2973.2,2972.7,0.235483]
[1720361185186,7.10750516,2973.2,2972.4,2.35494]
[1720361185390,0.69750516,2973.1,2972.4,2.35494]
[1720361185897,7.10750516,2973.2,2972.5,2.35491]
[1720361186200,7.10816072,2973.2,2972.5,2.35491]
[1720361186365,7.10816072,2973.2,2972.6,2.35478]
[1720361186698,7.10816072,2973.2,2972.6,2.825752]
[1720361186870,7.10816072,2973.2,2972.6,5.180542]
[1720361188207,7.10816072,2973.2,2972.6,2.825752]
[1720361188403,7.10816072,2973.2,2972.4,2.35496]
[1720361188584,7.10816072,2973.2,2971.8,2.35545]
[1720361188585,10.10816072,2973.2,2971.9,3.0]
[1720361188906,0.69816072,2972.9,2972.2,2.35515]
[1720361189407,0.69816072,2972.9,2972.3,0.235515]
[1720361189706,0.69816072,2972.9,2972.2,2.35515]
[1720361190271,0.69816072,2972.9,2972.4,2.35497]
[1720361190472,0.69816072,2973.1,2972.5,2.35487]
[1720361190703,0.69816072,2973.1,2972.5,4.67387]
[1720361191576,0.69816072,2973.0,2972.5,4.67387]
[1720361192108,0.09899251,2972.9,2972.6,2.35482]
[1720361192401,7.10816072,2973.2,2972.6,2.35482]
[1720361192572,0.09901579,2972.8,2972.6,2.35482]
[1720361192772,6.41,2973.2,2972.7,2.35476]
[1720361193903,6.41,2973.2,2972.7,3.1043617]
[1720361194205,6.41,2973.2,2972.7,3.1043117]
[1720361195031,7.10835323,2973.5,2973.0,2.35447]
[1720361195178,1.39670646,2973.7,2972.9,2.35455]
[1720361195179,0.69835323,2973.7,2972.9,2.35455]
[1720361195381,0.69835323,2973.7,2973.1,2.35444]
[1720361196078,0.69835323,2973.6,2972.9,2.35453]
[1720361196273,0.6984674,2973.5,2972.9,2.35453]
[1720361196529,0.6984674,2973.5,2972.9,4.70907]
[1720361196681,0.6984674,2973.5,2972.5,2.786387]
[1720361196882,0.6984674,2973.4,2972.5,4.67386]
[1720361197120,0.6984674,2973.3,2972.6,2.35484]
[1720361198187,0.69840055,2973.2,2972.6,2.35484]
[1720361199702,0.69840055,2973.3,2972.7,2.35475]
[1720361200117,0.69840055,2973.3,2972.8,2.35467]
[1720361200638,0.69840055,2973.4,2972.9,2.35455]
[1720361200836,7.45760083,2973.5,2973.1,2.35439]
[1720361200837,7.10840055,2973.5,2973.1,2.35439]
[1720361201127,6.41,2973.5,2973.1,2.35439]
[1720361201337,6.41,2973.5,2973.2,2.35435]
[1720361201540,6.41,2973.5,2973.2,7.15345]
[1720361201687,6.41,2973.5,2973.2,4.7991]
[1720361203086,6.41,2973.5,2973.2,2.4448]
[1720361204233,0.69844333,2973.8,2973.2,4.79916]
[1720361204535,0.19844333,2973.8,2973.2,4.79916]
[1720361204736,6.95782199,2973.9,2973.0,2.35447]
[1720361204942,6.95782199,2973.9,2973.1,2.35439]
[1720361204943,1.04782199,2973.7,2973.1,2.35439]
[1720361205140,6.95782199,2973.9,2973.1,2.30439]
[1720361205910,1.04782199,2973.8,2972.9,2.35453]
[1720361206110,1.04782199,2973.8,2973.0,0.470916]
[1720361206318,1.16478738,2973.7,2972.6,4.7996]
[1720361206513,2.21260937,2973.6,2972.7,3.0]
[1720361206719,1.04782199,2973.6,2972.7,3.0]
[1720361206900,0.08779398,2973.5,2972.7,5.35472]
[1720361208116,3.08779398,2973.5,2972.3,2.77794631]
[1720361208301,3.08779398,2973.5,2972.3,2.4448]
[1720361208302,1.04794154,2973.3,2972.3,2.4448]
[1720361208525,2.21288416,2973.2,2972.3,2.68928]
[1720361208723,2.21288416,2973.1,2972.3,2.68928]
[1720361209045,1.14303302,2973.1,2972.3,2.68928]
[1720361210209,0.09509148,2973.1,2972.3,2.68928]
[1720361210555,1.14303302,2973.1,2972.3,2.68928]
[1720361210836,0.09509148,2973.1,2972.4,0.504442]
[1720361211041,1.14367369,2973.1,2972.5,2.35489]
[1720361211241,0.09509148,2973.1,2972.5,2.35489]
[1720361211446,1.04858221,2973.3,2972.5,2.35489]
[1720361211605,0.09157242,2973.0,2972.5,0.7903622]
[1720361211833,1.04858221,2973.2,2972.5,0.7903622]
[1720361212032,0.09157242,2972.9,2972.5,0.7903622]
[1720361212254,1.04858221,2973.2,2972.5,0.7903622]
[1720361212428,0.09157242,2972.8,2972.3,2.4448]
[1720361212644,1.04858221,2973.1,2972.3,2.3948]
[1720361213259,1.14017126,2973.0,2972.3,2.3948]
[1720361213666,0.09158905,2973.0,2972.3,2.3948]
[1720361213987,0.09158905,2973.0,2972.3,2.3448]
[1720361214133,1.04937117,2973.1,2972.3,2.3448]
[1720361214332,0.09157907,2972.9,2972.4,0.769995]
[1720361214529,0.69963278,2972.9,2972.4,0.769995]
[1720361214732,0.09103574,2972.8,2972.4,0.769995]
[1720361214962,0.69963278,2973.0,2972.4,0.769995]
[1720361215261,0.09103574,2972.7,2972.4,0.769995]
[1720361215482,0.69963278,2973.0,2972.5,0.62099349]
[1720361215768,6.60963278,2973.3,2972.7,2.3547]
[1720361215945,0.09103574,2972.9,2972.7,2.3547]
[1720361216270,5.91,2973.3,2972.8,2.35468]
[1720361216570,5.91,2973.3,2972.9,0.235468]
[1720361216734,5.91,2973.3,2972.9,2.590068]
[1720361217064,5.91,2973.3,2972.9,5.034868]
[1720361217766,5.91,2973.3,2973.0,2.3545]
[1720361218553,5.91,2973.3,2972.9,2.680268]
[1720361218855,5.91,2973.3,2973.0,0.7389498]
[1720361219373,0.69932084,2973.4,2973.0,0.7389498]
[1720361220431,0.69941273,2973.4,2972.6,2.3906]
[1720361220663,0.69941273,2973.2,2972.3,3.0]
[1720361220869,0.69941273,2972.9,2972.2,2.35511]
[1720361221033,0.69941273,2972.9,2972.3,2.35506]
[1720361221429,0.69941273,2972.9,2972.3,5.35506]
[1720361221631,0.69941273,2972.9,2972.4,0.835506]
[1720361221830,0.69941273,2972.8,2972.5,0.06727843]
[1720361222067,0.08818527,2972.8,2972.7,2.35476]
[1720361222470,0.69941273,2973.0,2972.7,2.35476]
[1720361222775,0.69976994,2973.1,2972.7,2.35476]
[1720361222990,0.08812875,2972.9,2972.8,0.710019]
[1720361223214,0.69976994,2973.1,2972.8,0.710019]
[1720361223215,0.01075148,2973.0,2972.8,3.064689]
[1720361223516,1.04965492,2973.2,2972.8,3.064689]
[1720361223517,0.01302458,2972.9,2972.8,0.710019]
[1720361223666,0.01302458,2972.9,2972.6,2.3906]
[1720361223872,1.04965492,2973.1,2972.6,2.3906]
[1720361224098,1.04965492,2973.0,2972.6,2.3906]
[1720361224277,1.0604064,2973.0,2972.6,2.3906]
[1720361224463,1.04965492,2972.9,2972.6,2.3906]
[1720361224667,0.01529784,2972.8,2972.3,2.35501]
[1720361224869,0.01529784,2972.8,2972.4,0.774561]
[1720361225069,0.02769065,2972.8,2972.2,5.3906]
[1720361225314,1.04965492,2972.7,2972.2,5.3906]
[1720361225683,0.02996456,2972.6,2972.2,5.3906]
[1720361225885,0.02996456,2972.6,2972.2,7.74575]
[1720361226418,1.04965492,2972.8,2972.2,7.74575]
[1720361226566,0.02152417,2972.5,2972.2,8.520325]
[1720361226762,1.04965492,2972.8,2972.2,8.520325]
[1720361227008,0.02379802,2972.4,2972.3,2.35507]
[1720361227213,1.04965492,2973.0,2972.4,2.35494]
[1720361227618,0.01243031,2972.9,2972.4,2.35494]
[1720361227773,0.01243031,2972.9,2972.5,0.47772868]
[1720361228277,0.02739999,2972.9,2972.8,2.35468]
[1720361228479,0.01496968,2972.9,2972.8,2.35468]
[1720361228683,5.91,2973.2,2972.9,2.35458]
[1720361229207,5.91,2973.2,2973.1,2.35444]
[1720361229412,1.04956337,2973.5,2973.1,2.825331]
[1720361230208,1.04956337,2973.5,2973.1,2.35444]
[1720361230901,0.00642041,2973.4,2973.1,2.35444]
[1720361231108,0.00869306,2973.4,2972.9,4.7091]
[1720361231423,0.00869306,2973.4,2972.9,2.35453]
[1720361231627,0.00869306,2973.4,2973.0,2.589893]
[1720361232128,0.00869306,2973.3,2973.1,2.35444]
[1720361232271,1.04966034,2973.6,2973.1,2.35444]
[1720361232468,0.00414791,2973.5,2973.1,2.35444]
[1720361232690,0.0064204,2973.5,2973.1,2.35444]
[1720361232900,0.0064204,2973.5,2973.2,0.2589893]
[1720361233070,0.70601207,2973.5,2973.2,0.2589893]
[1720361234498,0.71077188,2973.5,2973.2,0.2589893]
[1720361235301,0.71054485,2973.5,2973.2,0.2589893]
[1720361235703,0.71054485,2973.5,2973.4,2.3542]
[1720361235704,0.0064204,2973.5,2973.4,2.3542]
[1720361236003,0.00255587,2973.5,2973.4,2.86130514]
[1720361236202,5.91,2973.7,2973.5,2.35406]
[1720361236513,5.91,2973.7,2973.6,2.35404]
[1720361237210,0.69936464,2974.0,2973.7,2.3539]
[1720361237405,0.69936464,2974.1,2973.7,2.3539]
[1720361237604,0.00457356,2973.9,2973.8,2.35389]
[1720361238128,0.69936464,2974.1,2973.8,2.35389]